fUST/lending_fUST_20240202
["ID","MTS","AMOUNT","RATE_DAILY","PERIOD"]
[313144560,1706803832046,-330.11998212,0.00018265,2]
[313144562,1706803832055,-1782.18480775,0.00018265,2]
[313144568,1706803832104,-371.484725,0.00018265,2]
[313144571,1706803832116,-3692.86146263,0.00018265,2]
[313144574,1706803832125,-155.00465014,0.00018266,2]
[313144577,1706803832134,-1295.71677018,0.00018266,2]
[313144580,1706803832144,-2042.45805917,0.00018266,2]
[313144582,1706803832154,-620.45234448,0.00018267,2]
[313144585,1706803832163,-166.03780741,0.00018267,2]
[313144587,1706803832172,-155.00465014,0.00018268,2]
[313144588,1706803832181,-20906.34873453,0.00018268,2]
[313144590,1706803832190,-155.00465014,0.00018269,2]
[313144592,1706803832199,-23451.44976014,0.00018269,2]
[313144641,1706803838989,-689.23338559,0.00018264,2]
[313144643,1706803838998,-98.91661466,0.00018264,2]
[313144650,1706803839048,-174.15707986,0.00018264,2]
[313144651,1706803839057,-167.29824562,0.00018264,2]
[313144653,1706803839069,-13570.01724599,0.00018269,2]
[313144655,1706803839078,-3751.65024701,0.0001827,2]
[313144656,1706803839088,-4175.74955009,0.0001827,2]
[313144657,1706803839097,-7245.15817935,0.00018373,2]
[313144658,1706803839112,-3326.84002864,0.0001838,2]
[313144659,1706803839126,-155.04370226,0.0001856,2]
[313144660,1706803839146,-1742.09395293,0.0001856,2]
[313144662,1706803839155,-155.48304034,0.0001856,2]
[313144664,1706803839165,-155.32947974,0.00018566,2]
[313144665,1706803839175,-262.81807088,0.00018566,2]
[313144667,1706803839192,-2565.96711453,0.00018566,2]
[313144669,1706803839212,-155.13375864,0.00018566,2]
[313144671,1706803839221,-302.02216839,0.00018566,2]
[313144673,1706803839230,-155.35506907,0.00018566,2]
[313144675,1706803839239,-2282.48977409,0.00018566,2]
[313144677,1706803839248,-195.18766924,0.00018566,2]
[313144678,1706803839257,-644.86914231,0.00018566,2]
[313144680,1706803839266,-268.93332274,0.00018566,2]
[313144681,1706803839275,-15726.38704086,0.00018566,2]
[313144683,1706803839284,-588.29384119,0.00018566,2]
[313144685,1706803839293,-291.14162311,0.000189,2]
[313144687,1706803839302,-169.685683,0.00019178,2]
[313144688,1706803839312,-200.0,0.00020125,2]
[313144689,1706803839321,-3197.9663533,0.000202,2]
[313144690,1706803839330,-300.0,0.000202,2]
[313144691,1706803839339,-2649.72,0.00021632,3]
[313144692,1706803839348,-1104.11915615,0.00021642,2]
[313144693,1706803839356,-939.50295876,0.00021642,2]
[313144694,1706803839365,-9084.78266083,0.00021642,2]
[313144695,1706803839374,-166.666666,0.00021918,2]
[313144696,1706803839383,-1203.58160915,0.00021999,2]
[313144697,1706803839392,-193.27651034,0.00022,4]
[313144698,1706803839403,-2036.5412467,0.00022,2]
[313144699,1706803839412,-326.04786116,0.00022,2]
[313144700,1706803839421,-3975.94482734,0.00022,2]
[313144701,1706803839430,-426.74292046,0.00022,2]
[313144702,1706803839439,-166.666666,0.00022431,2]
[313144703,1706803839448,-166.666666,0.00022944,2]
[313144704,1706803839458,-6896.42987548,0.00023,2]
[313144705,1706803839470,-288.57460372,0.00023,2]
[313144706,1706803839514,-989.30131082,0.00023,2]
[313144744,1706803844247,-155.44611023,0.00022502,2]
[313144745,1706803844256,-166.666666,0.00022503,2]
[313144746,1706803844265,-1782.59025378,0.00023,2]
[313144747,1706803844275,-1261.69149652,0.00023,2]
[313144748,1706803844284,-166.666666,0.00023117,2]
[313144749,1706803844294,-151.0,0.00023196,2]
[313144750,1706803844304,-166.666666,0.0002373,2]
[313144751,1706803844313,-1000.0,0.00023802,3]
[313144752,1706803844322,-388.1046015,0.00023802,2]
[313144753,1706803844331,-529.44713041,0.00023802,2]
[313144754,1706803844340,-470.04624208,0.00023802,2]
[313144755,1706803844350,-1000.0,0.00023802,3]
[313144756,1706803844361,-1000.0,0.00023802,3]
[313144757,1706803844370,-1000.0,0.00023802,3]
[313144758,1706803844379,-1000.0,0.00023802,3]
[313144759,1706803844388,-359.51300636,0.00023802,2]
[313144760,1706803844397,-1000.0,0.00023802,3]
[313144761,1706803844407,-505.10473383,0.00023802,2]
[313144762,1706803844416,-1127.95728938,0.00023802,2]
[313144763,1706803844425,-1000.0,0.00023802,3]
[313144764,1706803844436,-862.89068281,0.00023802,3]
[313144765,1706803844449,-137.10931719,0.00023802,3]
[313144766,1706803844460,-465.50840897,0.00023802,3]
[313144787,1706803848367,-262.36275318,0.00022502,2]
[313144788,1706803848377,-534.49159103,0.00023802,3]
[313144789,1706803848387,-338.86363442,0.00023802,3]
[313144790,1706803848398,-661.13636558,0.00023802,3]
[313144791,1706803848407,-1000.0,0.00023802,3]
[313144792,1706803848418,-2036.64624575,0.00023802,2]
[313144793,1706803848428,-4137.1,0.00023888,3]
[313144796,1706803848438,-1295.71677018,0.00023896,2]
[313144799,1706803848447,-342.00820679,0.00023897,2]
[313144802,1706803848457,-391.16896367,0.00023897,2]
[313144803,1706803848468,-268.29740468,0.00023897,2]
[313144804,1706803848477,-25125.86964199,0.00023898,2]
[313144805,1706803848489,-41547.29118354,0.00023898,2]
[313144806,1706803848498,-291.14162311,0.000239,2]
[313144807,1706803848507,-166.666666,0.00024344,2]
[313144808,1706803848517,-21690.99033113,0.00024548,2]
[313144809,1706803848526,-2084.46421862,0.00024645,2]
[313144810,1706803848536,-686.33170381,0.00024658,2]
[313144811,1706803848546,-3459.74901272,0.00024658,2]
[313144812,1706803848557,-18208.90492528,0.00024658,2]
[313144813,1706803848566,-21668.653938,0.00024658,2]
[313144814,1706803848576,-21668.653938,0.00024658,2]
[313144815,1706803848585,-20379.39143004,0.00024658,2]
[313144816,1706803848596,-1289.26250796,0.00024658,2]
[313144817,1706803848605,-526.2446568,0.00024658,2]
[313144819,1706803921173,181.99152,0.00028,30]
[313144827,1706804123384,-620.45234448,0.00021641,2]
[313144828,1706804123412,-4175.74955009,0.00021641,2]
[313144829,1706804123438,-6943.79810543,0.00021641,2]
[313144914,1706805038444,-155.00310006,0.00021613,2]
[313144915,1706805038455,-1743.62109759,0.00021613,2]
[313144916,1706805038466,-9741.19461134,0.00021614,2]
[313144917,1706805038476,-4175.74955009,0.00021615,2]
[313144918,1706805038485,-2107.2301694,0.0002164,2]
[313144919,1706805038495,-300.0,0.00021641,2]
[313144920,1706805038504,-3197.9663533,0.00021641,2]
[313144921,1706805038514,-1355.95429622,0.00021641,5]
[313144922,1706805038523,-5000.0,0.00021642,2]
[313144923,1706805038532,-22934.23736938,0.00021642,2]
[313144924,1706805038541,-3603.00053009,0.00021642,2]
[313144925,1706805038550,-5000.0,0.00021642,2]
[313144926,1706805038560,-814.56511147,0.00021642,2]
[313144927,1706805038569,-5000.0,0.00021642,2]
[313144928,1706805038578,-166.666666,0.00021918,2]
[313144929,1706805038587,-166.666666,0.00022431,2]
[313144930,1706805038597,-166.666666,0.00022944,2]
[313144931,1706805038606,-1733.17,0.0002298,3]
[313144932,1706805038615,-1261.69149652,0.00023,2]
[313144933,1706805038625,-9956.8960438,0.00023,2]
[313144934,1706805038634,-166.666666,0.00023456,2]
[313144935,1706805038644,-1380.27962173,0.00023796,2]
[313144936,1706805038656,-155.01085076,0.00023796,2]
[313144937,1706805038666,-155.01085076,0.00023796,2]
[313144938,1706805038675,-593.78733898,0.00023796,2]
[313144939,1706805038685,-155.01085076,0.00023796,2]
[313144940,1706805038694,-155.01085076,0.00023796,2]
[313144941,1706805038703,-155.01085076,0.00023796,2]
[313144942,1706805038712,-238.88414539,0.00023796,2]
[313144943,1706805038721,-410.92520654,0.00023797,2]
[313144944,1706805038731,-31376.26535209,0.00023797,2]
[313144945,1706805038739,-12662.85788839,0.00023798,2]
[313144946,1706805038758,-25243.8804957,0.00023798,2]
[313144947,1706805038767,-1000.0,0.00023802,3]
[313144948,1706805038776,-3565.42045917,0.00023802,2]
[313144949,1706805038785,-1000.0,0.00023802,3]
[313144950,1706805038794,-151.53142014,0.00023802,2]
[313144951,1706805038804,-200.0,0.00023804,7]
[313144952,1706805038813,-279.87043539,0.00023896,2]
[313144953,1706805038822,-509.71521149,0.00023896,2]
[313144954,1706805038831,-166.666666,0.00023969,2]
[313144955,1706805038840,-337.03,0.00024,2]
[313144956,1706805038850,-166.666666,0.00024482,2]
[313144957,1706805038859,-687.59109808,0.00024656,2]
[313144958,1706805038867,-167.1831429,0.00024657,2]
[313144959,1706805038877,-2077.54026328,0.00024658,2]
[313144960,1706805038890,-19018.08400116,0.00024658,2]
[313144989,1706805041564,-46.78501676,0.00024658,2]
[313144990,1706805041574,-1828.0659992,0.00024658,2]
[313144991,1706805041583,-1758.51529448,0.00024794,2]
[313144992,1706805041593,-67.43378956,0.00024796,2]
[313144993,1706805041604,-258.76316387,0.00024796,2]
[313144994,1706805041613,-554.74302848,0.00024796,2]
[313144995,1706805041622,-155.06769084,0.00024796,2]
[313144996,1706805041634,-243.47632395,0.00024796,2]
[313144997,1706805041644,-527.38076305,0.00024796,2]
[313144998,1706805041653,-181.23168733,0.00024796,2]
[313144999,1706805041662,-1581.46279222,0.00024796,2]
[313145000,1706805041671,-903.88612378,0.00024796,2]
[313145001,1706805041679,-309.71967101,0.00024796,2]
[313145002,1706805041688,-213.01763341,0.00024796,2]
[313145003,1706805041697,-924.86228463,0.00024796,2]
[313145004,1706805041706,-1242.8279432,0.00024796,2]
[313145005,1706805041716,-1414.95035694,0.00024796,2]
[313145006,1706805041724,-850.31218114,0.00024796,2]
[313145007,1706805041734,-2354.36523398,0.00024796,2]
[313145008,1706805041743,-522.24897159,0.00024796,2]
[313145009,1706805041752,-166.85150013,0.00024796,2]
[313145010,1706805041761,-155.18693013,0.00024796,2]
[313145011,1706805041771,-246.85415565,0.00024796,2]
[313145012,1706805041780,-155.34839151,0.00024796,2]
[313145013,1706805041789,-155.1822843,0.00024796,2]
[313145014,1706805041798,-155.1898932,0.00024796,2]
[313145015,1706805041808,-1267.12305076,0.00024796,2]
[313145016,1706805041818,-561.60154591,0.00024796,2]
[313145017,1706805041828,-678.69563899,0.00024796,2]
[313145018,1706805041838,-155.02325349,0.00024796,2]
[313145019,1706805041849,-175.88174645,0.00024797,2]
[313145020,1706805041858,-2188.82703634,0.000248,2]
[313145051,1706805043622,-738.24043781,0.000248,2]
[313145052,1706805043632,-300.0,0.000248,11]
[313145053,1706805043641,-187.2324765,0.00024888,2]
[313145054,1706805043650,-332.63587729,0.00024892,2]
[313145055,1706805043660,-2426.02127644,0.00024894,2]
[313145162,1706806232448,-155.00465014,0.00021048,4]
[313145164,1706806232460,-230.576275,0.00021049,2]
[313145166,1706806232470,-550.62907501,0.00021469,2]
[313145183,1706806238538,-1138.492502,0.00021469,2]
[313145184,1706806238551,-2486.62797308,0.00021469,2]
[313145185,1706806238561,-6036.97202692,0.0002147,2]
[313145186,1706806238573,-457.15771397,0.0002147,2]
[313145187,1706806238584,-786.0289051,0.00021476,2]
[313145188,1706806238596,-1354.58688316,0.00021641,5]
[313145189,1706806238607,-1693.27038637,0.00021642,2]
[313145190,1706806238621,-883.28542564,0.00021642,2]
[313145191,1706806238632,-6482.86650243,0.00021658,2]
[313145192,1706806238649,-2542.30151515,0.00021658,2]
[313145205,1706806242637,-4914.49451128,0.00021658,2]
[313145206,1706806242647,-165.629362,0.00021734,2]
[313145207,1706806242659,-166.666666,0.00021918,2]
[313145208,1706806242669,-326.04786116,0.00022,2]
[313145209,1706806242684,-155.02325349,0.000221,2]
[313145210,1706806242695,-166.666666,0.00022431,2]
[313145211,1706806242706,-280.04672417,0.00022696,2]
[313145212,1706806242718,-166.666666,0.00022944,2]
[313145213,1706806242728,-1261.69149652,0.00023,2]
[313145214,1706806242869,-166.666666,0.00023456,2]
[313145215,1706806242881,-200.0,0.0002378,7]
[313145216,1706806242890,-9956.8960438,0.00023801,2]
[313145218,1706806242899,-207.75879604,0.00023802,2]
[313145220,1706806242908,-1338.75572262,0.00023802,2]
[313145222,1706806242917,-745.81986805,0.00023802,2]
[313145224,1706806242927,-1000.0,0.00023802,3]
[313145226,1706806242935,-4.71217441,0.00023802,2]
[313145228,1706806242947,-663.80416168,0.00023802,2]
[313145230,1706806242956,-149.60883446,0.00023802,2]
[313145232,1706806242968,-64.4728759,0.00023802,2]
[313145233,1706806242978,-294.47475357,0.00023802,2]
[313145234,1706806242988,-166.666666,0.00023969,2]
[313145236,1706806242998,-682.91007592,0.00024,2]
[313145237,1706806243008,-2696.0930606,0.00024065,2]
[313145240,1706806243020,-547.71431706,0.00024065,2]
[313145242,1706806243029,-306.0,0.00024384,2]
[313145243,1706806243039,-307.3855345,0.00024384,2]
[313145244,1706806243048,-207.7973928,0.00024384,2]
[313145245,1706806243058,-153.4634771,0.00024384,2]
[313145247,1706806243066,-420.4280906,0.00024384,2]
[313145249,1706806243075,-403.7212813,0.00024384,2]
[313145251,1706806243085,-153.0,0.00024384,2]
[313145253,1706806243094,-153.0,0.00024384,2]
[313145255,1706806243105,-153.0,0.00024384,2]
[313145257,1706806243114,-153.0,0.00024384,2]
[313145260,1706806243123,-36.48992664,0.00024482,2]
[313145304,1706806243520,-130.17673936,0.00024482,2]
[313145306,1706806243530,-5329.29,0.00024547,3]
[313145309,1706806243541,-1580.49756358,0.00024556,2]
[313145311,1706806243551,-520.20463683,0.00024556,2]
[313145312,1706806243560,-179.54870885,0.00024556,2]
[313145315,1706806243574,-142.48661111,0.00024556,2]
[313145317,1706806243583,-445.72912178,0.00024556,2]
[313145502,1706806341336,549.0,0.0002849,61]
[313145503,1706806341764,549.0,0.0002848,61]
[313145504,1706806342204,549.0,0.0002847,61]
[313145524,1706806701303,384.0,0.0002849,61]
[313145525,1706806701759,384.0,0.0002848,61]
[313145526,1706806702216,384.0,0.0002847,61]
[313145531,1706806811198,1500.0,0.0001892,2]
[313145532,1706806811227,1000.0,0.0001892,2]
[313145533,1706806811256,500.0,0.0001892,2]
[313145534,1706806832088,159.4637677,0.00019368,2]
[313145535,1706806887531,270.6612929,0.00018903,2]
[313145542,1706806914306,250.0,0.00018899,2]
[313145544,1706806941748,1143.142152,0.00018889,2]
[313145561,1706807061337,269.0,0.0002849,61]
[313145562,1706807061768,269.0,0.0002848,61]
[313145563,1706807062215,269.0,0.0002847,61]
[313145595,1706807231967,176.7327874,0.00018833,2]
[313145596,1706807231995,1461.6210354,0.00018833,2]
[313145607,1706807401853,571.571076,0.00018787,2]
[313145650,1706807432675,-2141.72,0.00019771,3]
[313145651,1706807432685,-527.57429285,0.00019776,2]
[313145652,1706807432694,-155.01395126,0.00019777,2]
[313145653,1706807432704,-155.01395126,0.00019777,3]
[313145654,1706807432713,-19733.33425301,0.00019777,2]
[313145655,1706807432722,-4175.74955009,0.00019778,2]
[313145656,1706807432732,-199.53725951,0.00019778,2]
[313145657,1706807432741,-4821.59134489,0.00019778,2]
[313145658,1706807432751,-589.38631931,0.00019779,2]
[313145659,1706807432760,-5411.77478408,0.00019779,2]
[313145660,1706807432770,-3751.65024701,0.0001978,2]
[313145661,1706807432779,-155.01395126,0.00019781,2]
[313145662,1706807432788,-1743.62109759,0.00019781,2]
[313145663,1706807432798,-83838.45829962,0.00019781,2]
[313145664,1706807432807,-1000.0,0.00019781,2]
[313145665,1706807432818,-1000.0,0.00019781,2]
[313145666,1706807432829,-1000.0,0.00019781,2]
[313145667,1706807432838,-1000.0,0.00019781,2]
[313145668,1706807432847,-1000.0,0.00019781,2]
[313145669,1706807432856,-1000.0,0.00019781,2]
[313145670,1706807432865,-1000.0,0.00019781,2]
[313145671,1706807432875,-1000.0,0.00019781,2]
[313145672,1706807432884,-1000.0,0.00019781,2]
[313145673,1706807432893,-1000.0,0.00019781,2]
[313145674,1706807432902,-1000.0,0.00019781,2]
[313145675,1706807432911,-1000.0,0.00019781,2]
[313145676,1706807432921,-1000.0,0.00019781,2]
[313145677,1706807432930,-1000.0,0.00019781,2]
[313145678,1706807432940,-1244.37744405,0.00019782,2]
[313145679,1706807432949,-18933.9483255,0.00019782,2]
[313145680,1706807432958,-151.0,0.000213,2]
[313145681,1706807432967,-155.00620025,0.00021666,2]
[313145682,1706807432977,-55397.25504113,0.00021667,2]
[313145683,1706807432986,-1938.90392644,0.00021667,2]
[313145684,1706807432995,-5000.0,0.00021667,2]
[313145685,1706807433004,-758.32285995,0.00021667,2]
[313145686,1706807433014,-200.0,0.00021823,7]
[313145687,1706807433024,-166.666666,0.00021918,2]
[313145688,1706807433035,-154.9690062,0.00021971,2]
[313145689,1706807433045,-978.95259375,0.00022097,2]
[313145690,1706807433054,-166.666666,0.00022431,2]
[313145691,1706807433063,-186.69781611,0.00022447,2]
[313145692,1706807433072,-151.0,0.00022794,2]
[313145693,1706807433083,-166.666666,0.00022944,2]
[313145694,1706807433092,-9956.8960438,0.00023,2]
[313145695,1706807433102,-1261.69149652,0.00023,2]
[313145696,1706807433112,-166.666666,0.00023456,2]
[313145697,1706807433121,-328.49959582,0.00023802,2]
[313145698,1706807433131,-499.84903902,0.00023802,2]
[313145699,1706807433141,-488.34189852,0.00023802,2]
[313145700,1706807433150,-1000.0,0.00023802,3]
[313145701,1706807433160,-223.74596042,0.00023802,2]
[313145702,1706807433169,-1000.0,0.00023802,3]
[313145703,1706807433179,-166.666666,0.00023969,2]
[313145704,1706807433189,-280.0,0.00024005,7]
[313145705,1706807433199,-64082.15009347,0.00024207,2]
[313145706,1706807433208,-151.0,0.00024207,2]
[313145707,1706807433217,-287.482269,0.00024207,2]
[313145708,1706807433227,-151.0,0.00024287,2]
[313145709,1706807433236,-3326.84002864,0.00024305,2]
[313145710,1706807433245,-21712.69652796,0.00024307,2]
[313145711,1706807433255,-166.666666,0.00024482,2]
[313145712,1706807433264,-155.18453346,0.00024551,2]
[313145713,1706807433273,-166.90788547,0.00024551,2]
[313145714,1706807433283,-151.0,0.00024552,2]
[313145715,1706807433292,-151.0,0.00024552,2]
[313145716,1706807433302,-175.43157375,0.00024552,2]
[313145717,1706807433310,-2041.75712479,0.00024552,2]
[313145718,1706807433319,-155.00620025,0.00024552,2]
[313145719,1706807433331,-155.00620025,0.00024552,2]
[313145720,1706807433340,-167.24069426,0.00024552,2]
[313145721,1706807433350,-19889.78216214,0.00024552,2]
[313145722,1706807433359,-292.55349425,0.00024552,2]
[313145723,1706807433368,-155.30305915,0.00024552,2]
[313145724,1706807433378,-11704.23560941,0.00024552,2]
[313145725,1706807433387,-155.00620025,0.00024553,2]
[313145726,1706807433396,-302.3601781,0.00024553,2]
[313145728,1706807433405,-2019.73680266,0.00024553,2]
[313145729,1706807433414,-153.096833,0.00024555,2]
[313145730,1706807433423,-151.0,0.00024555,2]
[313145731,1706807433432,-291.88792347,0.00024555,2]
[313145732,1706807433441,-155.00775039,0.00024555,2]
[313145733,1706807433451,-1996.16717164,0.00024555,2]
[313145734,1706807433461,-329.99464709,0.00024555,2]
[313145735,1706807433471,-155.00620025,0.00024555,2]
[313145736,1706807433480,-20899.05725792,0.00024555,2]
[313145737,1706807433489,-181.23168733,0.00024555,2]
[313145738,1706807433499,-161.25377487,0.00024555,2]
[313145739,1706807433508,-620.23996484,0.00024555,2]
[313145740,1706807433517,-155.24324471,0.00024555,2]
[313145741,1706807433527,-556.20773545,0.00024555,2]
[313145742,1706807433537,-522.79204852,0.00024555,2]
[313145743,1706807433546,-500.0,0.00024555,2]
[313145744,1706807433555,-228.21554761,0.00024556,2]
[313145745,1706807433565,-261.54990155,0.00024556,2]
[313145746,1706807433575,-300.0,0.000248,11]
[313145747,1706807433584,-155.46257926,0.00024894,2]
[313145748,1706807433593,-155.40087864,0.00024894,7]
[313145749,1706807433602,-500.0,0.00024894,2]
[313145750,1706807433611,-500.0,0.00024894,2]
[313145751,1706807433619,-500.0,0.00024894,2]
[313145752,1706807433629,-500.0,0.00024894,2]
[313145753,1706807433638,-279.50241941,0.00024894,2]
[313145754,1706807433647,-623.19924127,0.00024894,2]
[313145755,1706807433656,-500.0,0.00024894,2]
[313145756,1706807433666,-500.0,0.00024894,2]
[313145757,1706807433676,-500.0,0.00024894,2]
[313145758,1706807433685,-500.98522998,0.00024894,2]
[313145759,1706807433694,-530.49915294,0.00024894,2]
[313145760,1706807433703,-500.0,0.00024894,2]
[313145761,1706807433712,-500.0,0.00024894,2]
[313145762,1706807433721,-500.0,0.00024894,2]
[313145763,1706807433730,-400.82419794,0.00024894,2]
[313145764,1706807433739,-369.96363186,0.00024894,2]
[313145765,1706807433747,-500.0,0.00024894,2]
[313145766,1706807433756,-500.0,0.00024894,2]
[313145767,1706807433765,-500.0,0.00024894,2]
[313145768,1706807433773,-500.0,0.00024894,2]
[313145769,1706807433783,-500.0,0.00024894,2]
[313145770,1706807433791,-500.0,0.00024894,2]
[313145771,1706807433801,-500.0,0.00024894,2]
[313145772,1706807433810,-500.0,0.00024894,2]
[313145773,1706807433819,-500.0,0.00024894,2]
[313145774,1706807433829,-500.0,0.00024894,2]
[313145775,1706807433838,-500.0,0.00024894,2]
[313145776,1706807433847,-500.0,0.00024894,2]
[313145777,1706807433858,-500.0,0.00024894,2]
[313145778,1706807433868,-500.0,0.00024894,2]
[313145779,1706807433877,-500.0,0.00024894,2]
[313145780,1706807433888,-500.0,0.00024894,2]
[313145781,1706807433896,-500.0,0.00024894,2]
[313145782,1706807433905,-500.0,0.00024894,2]
[313145783,1706807433915,-500.0,0.00024894,2]
[313145784,1706807433923,-500.0,0.00024894,2]
[313145785,1706807433932,-260.72281281,0.00024894,2]
[313145786,1706807433942,-500.0,0.00024894,2]
[313145787,1706807433951,-500.0,0.00024894,2]
[313145788,1706807433960,-500.0,0.00024894,2]
[313145789,1706807433969,-500.0,0.00024894,2]
[313145790,1706807433978,-500.0,0.00024894,2]
[313145791,1706807433987,-500.0,0.00024894,2]
[313145792,1706807433996,-500.0,0.00024894,2]
[313145793,1706807434005,-500.0,0.00024894,2]
[313145794,1706807434014,-500.0,0.00024894,2]
[313145795,1706807434027,-500.0,0.00024894,2]
[313145796,1706807434036,-500.0,0.00024894,2]
[313145797,1706807434045,-500.0,0.00024894,2]
[313145798,1706807434054,-500.0,0.00024894,2]
[313145799,1706807434151,-500.0,0.00024894,2]
[313145800,1706807434162,-500.0,0.00024894,2]
[313145801,1706807434171,-500.0,0.00024894,2]
[313145802,1706807434180,-500.0,0.00024894,2]
[313145803,1706807434189,-500.0,0.00024894,2]
[313145804,1706807434197,-500.0,0.00024894,2]
[313145805,1706807434207,-500.0,0.00024894,2]
[313145806,1706807434216,-593.99308358,0.00024894,2]
[313145807,1706807434225,-500.0,0.00024894,2]
[313145808,1706807434234,-529.94407953,0.00024894,2]
[313145809,1706807434243,-500.0,0.00024894,2]
[313145810,1706807434252,-500.0,0.00024894,2]
[313145811,1706807434261,-500.0,0.00024894,2]
[313145812,1706807434272,-500.0,0.00024894,2]
[313145813,1706807434281,-500.0,0.00024894,2]
[313145814,1706807434290,-500.0,0.00024894,2]
[313145815,1706807434299,-500.0,0.00024894,2]
[313145816,1706807434308,-500.0,0.00024894,2]
[313145817,1706807434317,-500.0,0.00024894,2]
[313145818,1706807434327,-317.2204651,0.00024894,2]
[313145819,1706807434336,-500.0,0.00024894,2]
[313145820,1706807434345,-500.0,0.00024894,2]
[313145821,1706807434355,-500.0,0.00024894,2]
[313145822,1706807434364,-500.0,0.00024894,2]
[313145823,1706807434372,-155.45073847,0.00024895,2]
[313145824,1706807434382,-155.41759005,0.00024895,2]
[313145825,1706807434391,-528.11461597,0.00024895,2]
[313145826,1706807434401,-295.88721157,0.00024896,2]
[313145827,1706807434411,-338.5068225,0.00024896,2]
[313145828,1706807434420,-336.8743585,0.00024896,2]
[313145829,1706807434430,-167.04336681,0.00024896,2]
[313145830,1706807434439,-11359.76790996,0.00024896,2]
[313145831,1706807434449,-157.40419331,0.00024896,2]
[313145832,1706807434458,-1848.72209752,0.00024896,2]
[313145833,1706807434467,-197.3085988,0.00024896,2]
[313145834,1706807434477,-155.30051131,0.00024897,2]
[313145835,1706807434486,-855.8403111,0.00024897,2]
[313145836,1706807434495,-272.44969746,0.00024897,2]
[313145837,1706807434504,-1277.53947422,0.00024897,2]
[313145838,1706807434513,-272.85668483,0.00024898,2]
[313145839,1706807434522,-309.78316417,0.00024898,2]
[313145840,1706807434532,-117663.76251183,0.000249,2]
[313145841,1706807434540,-8541.27862672,0.000249,2]
[313145842,1706807434933,1507.4672462,0.00018779,2]
[313146063,1706807443731,-4084.12,0.00019771,3]
[313146064,1706807443740,-945.35236849,0.00019781,2]
[313146082,1706807448736,-2006.11937971,0.0001977,2]
[313146083,1706807448746,-2214.64186464,0.00019779,2]
[313146107,1706807584834,347.0,0.0002849,61]
[313146108,1706807585306,347.0,0.0002848,61]
[313146109,1706807585767,347.0,0.0002847,61]
[313146129,1706807901340,243.0,0.00028483,61]
[313146130,1706807901794,243.0,0.00028473,61]
[313146131,1706807902235,243.0,0.00028463,61]
[313146136,1706808068529,3403.43,0.00019598,3]
[313146137,1706808078892,1596.57,0.00019598,3]
[313146173,1706808179916,159.29949,0.00019037,2]
[313146179,1706808261041,170.0,0.00028483,61]
[313146180,1706808261554,170.0,0.00028473,61]
[313146181,1706808261983,170.0,0.00028463,61]
[313146198,1706808435208,285.785538,0.00018531,2]
[313146207,1706808500239,1014.2556144,0.000195,2]
[313146220,1706808620915,150.5,0.00028483,61]
[313146221,1706808621361,150.5,0.00028473,61]
[313146222,1706808621822,150.5,0.00028463,61]
[313146256,1706808631794,-155.00775039,0.0001947,2]
[313146258,1706808631804,-5411.77478408,0.00019471,2]
[313146260,1706808631814,-689.23338559,0.00019471,2]
[313146262,1706808631823,-4175.74955009,0.00019471,2]
[313146263,1706808631832,-1667.79,0.00019472,3]
[313146265,1706808631841,-2292.13,0.00019472,3]
[313146267,1706808631850,-4821.59134489,0.00019479,2]
[313146269,1706808631859,-302.47163641,0.0001948,2]
[313146272,1706808631869,-589.38631931,0.0001948,2]
[313146274,1706808631878,-155.00775039,0.00019481,3]
[313146276,1706808631888,-2006.11937971,0.00019481,2]
[313146278,1706808631898,-2006.11937971,0.00019481,2]
[313146280,1706808631912,-2006.11937971,0.00019481,2]
[313146281,1706808631922,-2006.11937971,0.00019481,2]
[313146282,1706808631931,-2006.11937971,0.00019481,2]
[313146283,1706808631941,-155.00775039,0.00019482,2]
[313146284,1706808631950,-264.09896167,0.00019482,2]
[313146285,1706808631963,-3751.65024701,0.00019482,2]